[Event "Late-Titled-Tuesday-Blitz-October-24-2023"]
[Site "Chess.com"]
[Date "2023.10.24"]
[Round "7"]
[White "Tonychess32"]
[Black "rychessmaster1"]
[Result "1-0"]
[WhiteElo "2545"]
[BlackElo "2675"]
[TimeControl "180+1"]
[EndTime "15:13:41 PDT"]
[Termination "Tonychess32 won by resignation"]

1. e4 {[%clk 0:02:54.7]} 1... c6 {[%clk 0:02:59.2]} 2. d4 {[%clk 0:02:52.7]}
2... d5 {[%clk 0:02:59.8]} 3. e5 {[%clk 0:02:51.2]} 3... c5 {[%clk 0:03:00.2]}
4. c3 {[%clk 0:02:51.3]} 4... Nc6 {[%clk 0:02:59.8]} 5. Nf3 {[%clk 0:02:51.5]}
5... cxd4 {[%clk 0:03:00.2]} 6. cxd4 {[%clk 0:02:50.5]} 6... Bg4 {[%clk
0:03:00.7]} 7. Be2 {[%clk 0:02:46.4]} 7... e6 {[%clk 0:03:00.3]} 8. Nc3 {[%clk
0:02:40.4]} 8... Nge7 {[%clk 0:02:58.9]} 9. Be3 {[%clk 0:02:35.9]} 9... Qb6
{[%clk 0:02:50]} 10. O-O {[%clk 0:02:28.9]} 10... Nf5 {[%clk 0:02:46]} 11. Na4
{[%clk 0:02:24.7]} 11... Qd8 {[%clk 0:02:33.5]} 12. Rc1 {[%clk 0:02:17.4]} 12...
Bxf3 {[%clk 0:02:24]} 13. Bxf3 {[%clk 0:02:16.1]} 13... Be7 {[%clk 0:02:24.4]}
14. Bg4 {[%clk 0:02:15.4]} 14... g6 {[%clk 0:02:20.9]} 15. Bxf5 {[%clk
0:02:08.2]} 15... gxf5 {[%clk 0:02:21.8]} 16. Nc5 {[%clk 0:02:03.9]} 16... Bxc5
{[%clk 0:02:21.3]} 17. Rxc5 {[%clk 0:02:03.7]} 17... Rg8 {[%clk 0:02:06]} 18.
Qh5 {[%clk 0:02:00.4]} 18... Qe7 {[%clk 0:02:06.4]} 19. Rfc1 {[%clk 0:01:52.6]}
19... Rg6 {[%clk 0:01:39.5]} 20. b4 {[%clk 0:01:41]} 20... a6 {[%clk 0:01:35.7]}
21. a4 {[%clk 0:01:40.6]} 21... Rg4 {[%clk 0:01:12.1]} 22. Qxh7 {[%clk
0:01:33.3]} 22... Kd7 {[%clk 0:00:56.3]} 23. b5 {[%clk 0:01:32.1]} 23... axb5
{[%clk 0:00:56.4]} 24. axb5 {[%clk 0:01:32.2]} 24... Rh4 {[%clk 0:00:56.9]} 25.
bxc6+ {[%clk 0:01:31.1]} 25... bxc6 {[%clk 0:00:57.6]} 26. Qg7 {[%clk 0:01:28]}
26... Rg4 {[%clk 0:00:57.1]} 27. Qh6 {[%clk 0:01:22.6]} 27... Rag8 {[%clk
0:00:55.8]} 28. g3 {[%clk 0:01:22]} 28... R8g6 {[%clk 0:00:52.5]} 29. Qh3 {[%clk
0:01:20.7]} 29... f4 {[%clk 0:00:48.6]} 30. Rxc6 {[%clk 0:01:15.5]} 30... Qd8
{[%clk 0:00:28.2]} 31. Rd6+ {[%clk 0:01:14.6]} 1-0

[Event "Late-Titled-Tuesday-Blitz-October-24-2023"]
[Site "Chess.com"]
[Date "2023.10.24"]
[Round "7"]
[White "Sjakkerntobi"]
[Black "AndresDelgado77"]
[Result "1-0"]
[WhiteElo "2513"]
[BlackElo "2351"]
[TimeControl "180+1"]
[EndTime "15:13:41 PDT"]
[Termination "Sjakkerntobi won on time"]

1. e4 {[%clk 0:03:00.9]} 1... e6 {[%clk 0:02:59.2]} 2. d4 {[%clk 0:03:01.1]}
2... d5 {[%clk 0:02:49.9]} 3. Nc3 {[%clk 0:03:01.1]} 3... Nf6 {[%clk 0:02:48.8]}
4. e5 {[%clk 0:03:01]} 4... Nfd7 {[%clk 0:02:48.9]} 5. f4 {[%clk 0:03:01.9]}
5... c5 {[%clk 0:02:48.8]} 6. Nf3 {[%clk 0:03:02.8]} 6... Nc6 {[%clk 0:02:47.2]}
7. Be3 {[%clk 0:03:03]} 7... cxd4 {[%clk 0:02:46.3]} 8. Nxd4 {[%clk 0:03:03.2]}
8... Qb6 {[%clk 0:02:46.6]} 9. Qd2 {[%clk 0:02:58.7]} 9... Qxb2 {[%clk
0:02:45.3]} 10. Rb1 {[%clk 0:02:58.9]} 10... Qa3 {[%clk 0:02:45.6]} 11. Bb5
{[%clk 0:02:58.9]} 11... Ndb8 {[%clk 0:02:44.6]} 12. f5 {[%clk 0:02:49]} 12...
a6 {[%clk 0:02:26.6]} 13. Bxc6+ {[%clk 0:02:48.5]} 13... Nxc6 {[%clk 0:02:26.2]}
14. fxe6 {[%clk 0:02:43.8]} 14... fxe6 {[%clk 0:02:22.1]} 15. Nxc6 {[%clk
0:02:43.7]} 15... bxc6 {[%clk 0:02:21.2]} 16. O-O {[%clk 0:02:42.4]} 16... Bc5
{[%clk 0:02:12.4]} 17. Rb3 {[%clk 0:02:37.3]} 17... Bxe3+ {[%clk 0:02:04.9]} 18.
Qxe3 {[%clk 0:02:38.2]} 18... Qe7 {[%clk 0:02:04.8]} 19. Na4 {[%clk 0:02:32.4]}
19... Bd7 {[%clk 0:01:40]} 20. Nb6 {[%clk 0:02:24.9]} 20... Rd8 {[%clk
0:01:20.8]} 21. Qe2 {[%clk 0:02:10.5]} 21... Rf8 {[%clk 0:01:02.6]} 22. Rfb1
{[%clk 0:02:06.4]} 22... Qc5+ {[%clk 0:00:58.7]} 23. Kh1 {[%clk 0:02:03.8]}
23... Rf2 {[%clk 0:00:32.9]} 24. Qh5+ {[%clk 0:02:02.7]} 24... g6 {[%clk
0:00:33.2]} 25. Qxh7 {[%clk 0:01:57.5]} 25... Qxc2 {[%clk 0:00:32.8]} 26. Nxd7
{[%clk 0:01:46]} 26... Rxd7 {[%clk 0:00:20]} 27. Rb8+ {[%clk 0:01:44.6]} 27...
Rd8 {[%clk 0:00:19.4]} 28. Rxd8+ {[%clk 0:01:44.2]} 1-0

[Event "Late-Titled-Tuesday-Blitz-October-24-2023"]
[Site "Chess.com"]
[Date "2023.10.24"]
[Round "7"]
[White "miraitrunks"]
[Black "Hirna2005"]
[Result "0-1"]
[WhiteElo "2105"]
[BlackElo "2313"]
[TimeControl "180+1"]
[EndTime "15:13:43 PDT"]
[Termination "Hirna2005 won by resignation"]

1. e4 {[%clk 0:02:59]} 1... g6 {[%clk 0:02:59.6]} 2. d4 {[%clk 0:02:59.1]} 2...
Bg7 {[%clk 0:02:59.8]} 3. Nc3 {[%clk 0:02:59]} 3... d6 {[%clk 0:03:00.4]} 4.
Nge2 {[%clk 0:02:59.3]} 4... a6 {[%clk 0:03:00.5]} 5. a4 {[%clk 0:02:59.3]} 5...
Nc6 {[%clk 0:03:00.1]} 6. Be3 {[%clk 0:02:59.5]} 6... Nf6 {[%clk 0:02:59.7]} 7.
h3 {[%clk 0:02:59.9]} 7... O-O {[%clk 0:02:59.5]} 8. g4 {[%clk 0:03:00.2]} 8...
Rb8 {[%clk 0:02:49]} 9. Ng3 {[%clk 0:02:56.8]} 9... e5 {[%clk 0:02:39.4]} 10. d5
{[%clk 0:02:55.5]} 10... Nd4 {[%clk 0:02:38.1]} 11. g5 {[%clk 0:02:48.7]} 11...
Nd7 {[%clk 0:02:22.7]} 12. h4 {[%clk 0:02:43.6]} 12... f5 {[%clk 0:02:20.6]} 13.
exf5 {[%clk 0:02:31.2]} 13... Nxf5 {[%clk 0:02:19.2]} 14. Nxf5 {[%clk
0:02:28.6]} 14... gxf5 {[%clk 0:02:19.1]} 15. Qh5 {[%clk 0:02:24.9]} 15... f4
{[%clk 0:02:16]} 16. Bd2 {[%clk 0:02:24.4]} 16... a5 {[%clk 0:02:06.6]} 17. Bd3
{[%clk 0:02:23.4]} 17... Rf7 {[%clk 0:01:58.3]} 18. Bxh7+ {[%clk 0:02:14.7]}
18... Kf8 {[%clk 0:01:58.3]} 19. Bg6 {[%clk 0:02:12.8]} 19... Qe7 {[%clk
0:01:58.3]} 20. Bxf7 {[%clk 0:02:12.2]} 20... Qxf7 {[%clk 0:01:58.5]} 21. g6
{[%clk 0:02:10.3]} 21... Qe7 {[%clk 0:01:49.9]} 22. Ne4 {[%clk 0:02:09.6]} 22...
Nf6 {[%clk 0:01:48.8]} 23. Nxf6 {[%clk 0:02:01.4]} 23... Qxf6 {[%clk 0:01:48.3]}
24. Qg5 {[%clk 0:02:01.4]} 24... Qxg5 {[%clk 0:01:45.7]} 25. hxg5 {[%clk
0:02:02.3]} 25... Bf5 {[%clk 0:01:45.8]} 26. O-O-O {[%clk 0:02:01.1]} 26... Bxg6
{[%clk 0:01:45.2]} 27. Bxa5 {[%clk 0:02:01.5]} 27... b6 {[%clk 0:01:43.3]} 28.
Bc3 {[%clk 0:01:59.4]} 28... Kf7 {[%clk 0:01:39.4]} 29. f3 {[%clk 0:01:59.1]}
29... Ra8 {[%clk 0:01:35.9]} 30. b3 {[%clk 0:01:58.9]} 30... b5 {[%clk 0:01:34]}
31. axb5 {[%clk 0:01:58.9]} 31... Rb8 {[%clk 0:01:34.1]} 32. Kb2 {[%clk
0:01:55.1]} 32... Rxb5 {[%clk 0:01:33.9]} 33. Ra1 {[%clk 0:01:54.4]} 33... Rxd5
{[%clk 0:01:32.4]} 34. Ra7 {[%clk 0:01:53.2]} 34... Rc5 {[%clk 0:01:31.4]} 35.
Ba5 {[%clk 0:01:53.4]} 35... e4+ {[%clk 0:01:30]} 36. c3 {[%clk 0:01:45]} 36...
exf3 {[%clk 0:01:26.7]} 37. Bxc7 {[%clk 0:01:44.9]} 37... Bxc3+ {[%clk 0:01:25]}
38. Ka3 {[%clk 0:01:44.9]} 38... Ke6 {[%clk 0:01:19.4]} 39. b4 {[%clk
0:01:43.1]} 39... Rd5 {[%clk 0:01:14.4]} 40. Kb3 {[%clk 0:01:39.3]} 40... Rd3
{[%clk 0:01:11.3]} 41. Ra6 {[%clk 0:01:30.1]} 41... Be5+ {[%clk 0:01:08.2]} 42.
Ka2 {[%clk 0:01:22.3]} 42... f2 {[%clk 0:01:02.9]} 0-1

[Event "Late-Titled-Tuesday-Blitz-October-24-2023"]
[Site "Chess.com"]
[Date "2023.10.24"]
[Round "7"]
[White "egnfanclub"]
[Black "gahryman"]
[Result "0-1"]
[WhiteElo "2381"]
[BlackElo "2672"]
[TimeControl "180+1"]
[EndTime "15:13:46 PDT"]
[Termination "gahryman won by resignation"]

1. e4 {[%clk 0:03:00.9]} 1... c5 {[%clk 0:02:59.5]} 2. Nc3 {[%clk 0:03:00.7]}
2... Nc6 {[%clk 0:02:59.2]} 3. f4 {[%clk 0:03:01]} 3... g6 {[%clk 0:02:59]} 4.
Nf3 {[%clk 0:03:01]} 4... Bg7 {[%clk 0:02:59.6]} 5. Bc4 {[%clk 0:03:01.7]} 5...
e6 {[%clk 0:03:00.2]} 6. f5 {[%clk 0:03:02]} 6... Nge7 {[%clk 0:02:57.9]} 7.
fxe6 {[%clk 0:03:01.9]} 7... fxe6 {[%clk 0:02:55.8]} 8. d3 {[%clk 0:03:02.8]}
8... d5 {[%clk 0:02:49.2]} 9. Bb3 {[%clk 0:03:02.6]} 9... b5 {[%clk 0:02:23.6]}
10. O-O {[%clk 0:03:02]} 10... c4 {[%clk 0:02:23.2]} 11. dxc4 {[%clk 0:02:49.1]}
11... dxc4 {[%clk 0:02:22.4]} 12. Qxd8+ {[%clk 0:02:48.9]} 12... Kxd8 {[%clk
0:02:20.1]} 13. Nxb5 {[%clk 0:02:49.8]} 13... cxb3 {[%clk 0:02:19.6]} 14. Ng5
{[%clk 0:02:46.9]} 14... bxc2 {[%clk 0:01:57.1]} 15. Rf2 {[%clk 0:02:36.4]}
15... Nd4 {[%clk 0:01:35.7]} 16. Rd2 {[%clk 0:02:27.4]} 16... Nc6 {[%clk
0:01:35.3]} 17. Nf7+ {[%clk 0:01:38.1]} 17... Ke7 {[%clk 0:01:34.9]} 18. Nxh8
{[%clk 0:01:38.2]} 18... Bxh8 {[%clk 0:01:04.3]} 19. a4 {[%clk 0:01:27.2]} 19...
a6 {[%clk 0:00:29.5]} 20. Nc3 {[%clk 0:01:09]} 20... Nb3 {[%clk 0:00:27.3]} 0-1

[Event "Late-Titled-Tuesday-Blitz-October-24-2023"]
[Site "Chess.com"]
[Date "2023.10.24"]
[Round "7"]
[White "Escudito"]
[Black "katharinareinecke"]
[Result "1-0"]
[WhiteElo "2465"]
[BlackElo "1858"]
[TimeControl "180+1"]
[EndTime "15:13:58 PDT"]
[Termination "Escudito won by checkmate"]

1. d4 {[%clk 0:03:00.9]} 1... d5 {[%clk 0:02:58.8]} 2. c4 {[%clk 0:03:01.3]}
2... c6 {[%clk 0:02:58.3]} 3. cxd5 {[%clk 0:03:01.3]} 3... cxd5 {[%clk
0:02:57.9]} 4. Nc3 {[%clk 0:03:02.2]} 4... Nf6 {[%clk 0:02:56.5]} 5. Bf4 {[%clk
0:03:02.5]} 5... e6 {[%clk 0:02:55.3]} 6. e3 {[%clk 0:03:02.6]} 6... Bd6 {[%clk
0:02:54.1]} 7. Bxd6 {[%clk 0:03:02.6]} 7... Qxd6 {[%clk 0:02:54.2]} 8. Bd3
{[%clk 0:03:03.1]} 8... a6 {[%clk 0:02:52.9]} 9. f4 {[%clk 0:03:03.4]} 9... O-O
{[%clk 0:02:51.8]} 10. Nf3 {[%clk 0:03:03.9]} 10... Nbd7 {[%clk 0:02:48.9]} 11.
O-O {[%clk 0:03:04.2]} 11... b5 {[%clk 0:02:48.8]} 12. Ne5 {[%clk 0:03:04.3]}
12... Bb7 {[%clk 0:02:43.4]} 13. Qf3 {[%clk 0:03:04]} 13... Nb6 {[%clk
0:02:36.8]} 14. a3 {[%clk 0:02:56.5]} 14... Nc4 {[%clk 0:02:34.6]} 15. Rab1
{[%clk 0:02:52.4]} 15... Nd2 {[%clk 0:02:31.6]} 16. Qh3 {[%clk 0:02:52.3]} 16...
Nxb1 {[%clk 0:02:27.2]} 17. Bxb1 {[%clk 0:02:50.3]} 17... b4 {[%clk 0:02:11.2]}
18. Na4 {[%clk 0:02:46.5]} 18... bxa3 {[%clk 0:02:07.8]} 19. Nc5 {[%clk
0:02:46.3]} 19... Bc6 {[%clk 0:01:53.9]} 20. bxa3 {[%clk 0:02:46]} 20... g6
{[%clk 0:01:49.2]} 21. Qh4 {[%clk 0:02:42.8]} 21... Ne4 {[%clk 0:01:45.2]} 22.
Rf3 {[%clk 0:02:39.3]} 22... Nxc5 {[%clk 0:01:43]} 23. Rh3 {[%clk 0:02:38.4]}
23... h5 {[%clk 0:01:34.6]} 24. Qg5 {[%clk 0:02:18.5]} 24... Qd8 {[%clk
0:01:22.4]} 25. Qh6 {[%clk 0:02:18.1]} 25... Qf6 {[%clk 0:01:20.5]} 26. Nxc6
{[%clk 0:01:56.5]} 26... Ne4 {[%clk 0:01:15.5]} 27. Bxe4 {[%clk 0:01:54.6]}
27... dxe4 {[%clk 0:01:15.4]} 28. Rxh5 {[%clk 0:01:54.7]} 28... gxh5 {[%clk
0:00:43.2]} 29. Qxf6 {[%clk 0:01:52.5]} 29... Kh7 {[%clk 0:00:35.8]} 30. Ne5
{[%clk 0:01:46.3]} 30... Rac8 {[%clk 0:00:27.1]} 31. Nxf7 {[%clk 0:01:39.9]}
31... Rc1+ {[%clk 0:00:19.2]} 32. Kf2 {[%clk 0:01:39.9]} 32... Rc2+ {[%clk
0:00:18.2]} 33. Kg3 {[%clk 0:01:38.8]} 33... Rg8+ {[%clk 0:00:16.3]} 34. Ng5+
{[%clk 0:01:38.8]} 34... Rxg5+ {[%clk 0:00:11.9]} 35. fxg5 {[%clk 0:01:39.7]}
35... Rc3 {[%clk 0:00:10.8]} 36. g6+ {[%clk 0:01:37.4]} 36... Kg8 {[%clk
0:00:08.7]} 37. Qf7+ {[%clk 0:01:36.9]} 37... Kh8 {[%clk 0:00:09.1]} 38. Qh7#
{[%clk 0:01:37.3]} 1-0

[Event "Late-Titled-Tuesday-Blitz-October-24-2023"]
[Site "Chess.com"]
[Date "2023.10.24"]
[Round "7"]
[White "FedaMaster"]
[Black "jup1978"]
[Result "1-0"]
[WhiteElo "2658"]
[BlackElo "2493"]
[TimeControl "180+1"]
[EndTime "15:13:59 PDT"]
[Termination "FedaMaster won by resignation"]

1. e4 {[%clk 0:03:00.9]} 1... c5 {[%clk 0:02:59.3]} 2. d4 {[%clk 0:03:00.2]}
2... cxd4 {[%clk 0:02:58.4]} 3. c3 {[%clk 0:03:01.1]} 3... Nf6 {[%clk
0:02:55.1]} 4. e5 {[%clk 0:03:01.3]} 4... Nd5 {[%clk 0:02:55.5]} 5. Nf3 {[%clk
0:03:02.2]} 5... d6 {[%clk 0:02:55]} 6. Qxd4 {[%clk 0:03:00.4]} 6... e6 {[%clk
0:02:51.3]} 7. Nbd2 {[%clk 0:03:00.5]} 7... Nc6 {[%clk 0:02:48.3]} 8. Bb5 {[%clk
0:03:01.1]} 8... Bd7 {[%clk 0:02:48.8]} 9. Bxc6 {[%clk 0:03:01.9]} 9... Bxc6
{[%clk 0:02:49.6]} 10. Nc4 {[%clk 0:03:02.5]} 10... dxe5 {[%clk 0:02:46.8]} 11.
Nfxe5 {[%clk 0:03:03.4]} 11... Rc8 {[%clk 0:02:42.1]} 12. Nxc6 {[%clk
0:03:02.5]} 12... Rxc6 {[%clk 0:02:40.6]} 13. Ne5 {[%clk 0:03:03]} 13... Ra6
{[%clk 0:02:35.9]} 14. c4 {[%clk 0:03:02.8]} 14... Bb4+ {[%clk 0:02:15.8]} 15.
Kf1 {[%clk 0:02:55.4]} 15... Qb6 {[%clk 0:02:10.8]} 16. Qg4 {[%clk 0:02:38.3]}
16... O-O {[%clk 0:01:30.4]} 17. cxd5 {[%clk 0:02:35.9]} 17... Qb5+ {[%clk
0:01:30.7]} 18. Qe2 {[%clk 0:02:34.5]} 18... Qxd5 {[%clk 0:01:29.6]} 19. Bf4
{[%clk 0:02:26.7]} 19... Rxa2 {[%clk 0:01:22.6]} 20. Rxa2 {[%clk 0:02:22.9]}
20... Qxa2 {[%clk 0:01:23.5]} 21. g3 {[%clk 0:02:21]} 21... Qd5 {[%clk
0:01:20.2]} 22. Qf3 {[%clk 0:02:19.9]} 22... Qd4 {[%clk 0:01:09]} 23. Qxb7
{[%clk 0:02:10.7]} 23... Bc5 {[%clk 0:01:01.2]} 24. Qf3 {[%clk 0:01:53.7]} 24...
f6 {[%clk 0:00:55.2]} 25. Nc6 {[%clk 0:01:48]} 25... Qxb2 {[%clk 0:00:53.5]} 26.
Kg2 {[%clk 0:01:36.8]} 26... Qb6 {[%clk 0:00:34.1]} 27. Rc1 {[%clk 0:01:24.8]}
27... h6 {[%clk 0:00:23.8]} 28. Qe4 {[%clk 0:01:06.7]} 28... e5 {[%clk
0:00:21.6]} 29. Qd5+ {[%clk 0:01:06.4]} 1-0

[Event "Late-Titled-Tuesday-Blitz-October-24-2023"]
[Site "Chess.com"]
[Date "2023.10.24"]
[Round "7"]
[White "Roedor"]
[Black "carloseduar100"]
[Result "1-0"]
[WhiteElo "2437"]
[BlackElo "2287"]
[TimeControl "180+1"]
[EndTime "15:13:59 PDT"]
[Termination "Roedor won by resignation"]

1. d4 {[%clk 0:02:56.9]} 1... d5 {[%clk 0:02:59.9]} 2. c4 {[%clk 0:02:56.6]}
2... e5 {[%clk 0:02:59.3]} 3. dxe5 {[%clk 0:02:55.2]} 3... d4 {[%clk 0:03:00.2]}
4. Nf3 {[%clk 0:02:55.5]} 4... Nc6 {[%clk 0:03:00.7]} 5. g3 {[%clk 0:02:54.2]}
5... Nge7 {[%clk 0:02:57.6]} 6. Bg2 {[%clk 0:02:53.4]} 6... Ng6 {[%clk
0:02:57.3]} 7. O-O {[%clk 0:02:53.9]} 7... Bg4 {[%clk 0:02:52]} 8. Nbd2 {[%clk
0:02:53.6]} 8... Qd7 {[%clk 0:02:51.8]} 9. a3 {[%clk 0:02:53]} 9... h5 {[%clk
0:02:51.4]} 10. h4 {[%clk 0:02:49.9]} 10... O-O-O {[%clk 0:02:49]} 11. b4 {[%clk
0:02:49.9]} 11... Ncxe5 {[%clk 0:02:49.2]} 12. c5 {[%clk 0:02:42.4]} 12... d3
{[%clk 0:02:44.4]} 13. Bb2 {[%clk 0:02:34.9]} 13... f6 {[%clk 0:02:40.4]} 14.
Re1 {[%clk 0:02:30.1]} 14... Bh3 {[%clk 0:02:37.5]} 15. Nxe5 {[%clk 0:02:24.4]}
15... Nxe5 {[%clk 0:02:35]} 16. Bxe5 {[%clk 0:02:24.2]} 16... Bxg2 {[%clk
0:02:29.1]} 17. Kxg2 {[%clk 0:02:23.2]} 17... fxe5 {[%clk 0:02:26.7]} 18. exd3
{[%clk 0:02:21.9]} 18... Qxd3 {[%clk 0:02:24.6]} 19. Nf3 {[%clk 0:02:21]} 19...
Qf5 {[%clk 0:01:48.2]} 20. Qb1 {[%clk 0:02:14.2]} 20... Qf6 {[%clk 0:01:08]} 21.
Qe4 {[%clk 0:02:08.9]} 21... g6 {[%clk 0:01:03.2]} 22. Qxe5 {[%clk 0:02:05.6]}
22... Qxe5 {[%clk 0:01:00.5]} 23. Nxe5 {[%clk 0:02:05.8]} 23... Bg7 {[%clk
0:01:00.9]} 24. Nf7 {[%clk 0:02:05.3]} 24... Bxa1 {[%clk 0:00:59.7]} 25. Rxa1
{[%clk 0:02:01.3]} 25... Rhf8 {[%clk 0:00:59.3]} 26. Nxd8 {[%clk 0:02:00.6]}
26... Rxd8 {[%clk 0:00:58.8]} 27. Ra2 {[%clk 0:02:00.8]} 27... c6 {[%clk
0:00:57.1]} 28. Re2 {[%clk 0:01:59.9]} 28... Rd3 {[%clk 0:00:56.4]} 29. Re6
{[%clk 0:01:59.5]} 29... Rxa3 {[%clk 0:00:55.9]} 30. Rxg6 {[%clk 0:01:59.6]}
30... Rb3 {[%clk 0:00:56.5]} 31. g4 {[%clk 0:01:56.4]} 31... Rxb4 {[%clk
0:00:55.5]} 32. Kg3 {[%clk 0:01:51]} 32... hxg4 {[%clk 0:00:53.2]} 33. h5 {[%clk
0:01:51.3]} 33... Rb1 {[%clk 0:00:45.1]} 34. h6 {[%clk 0:01:47.8]} 34... Rh1
{[%clk 0:00:43.6]} 35. Kxg4 {[%clk 0:01:44.3]} 35... a5 {[%clk 0:00:43.8]} 36.
Kg5 {[%clk 0:01:43.1]} 36... a4 {[%clk 0:00:44]} 37. Rg8+ {[%clk 0:01:42.9]}
37... Kc7 {[%clk 0:00:44.2]} 38. Ra8 {[%clk 0:01:41.8]} 38... b5 {[%clk
0:00:44.4]} 39. h7 {[%clk 0:01:35.5]} 39... Rxh7 {[%clk 0:00:35.5]} 40. Ra7+
{[%clk 0:01:35.5]} 40... Kb8 {[%clk 0:00:35.2]} 41. Rxh7 {[%clk 0:01:36.1]}
41... b4 {[%clk 0:00:36.1]} 42. Rh4 {[%clk 0:01:35.6]} 1-0

[Event "Late-Titled-Tuesday-Blitz-October-24-2023"]
[Site "Chess.com"]
[Date "2023.10.24"]
[Round "7"]
[White "The_Straightforward_Rook"]
[Black "KVAIDAN"]
[Result "0-1"]
[WhiteElo "2562"]
[BlackElo "2432"]
[TimeControl "180+1"]
[EndTime "15:14:07 PDT"]
[Termination "KVAIDAN won by checkmate"]

1. d4 {[%clk 0:02:54.9]} 1... d5 {[%clk 0:02:59]} 2. Nf3 {[%clk 0:02:54.7]} 2...
Nf6 {[%clk 0:02:57.7]} 3. c4 {[%clk 0:02:55.1]} 3... dxc4 {[%clk 0:02:56.5]} 4.
e3 {[%clk 0:02:54.8]} 4... Be6 {[%clk 0:02:56.2]} 5. Na3 {[%clk 0:02:49.3]} 5...
c6 {[%clk 0:02:57.1]} 6. Nxc4 {[%clk 0:02:47.3]} 6... g6 {[%clk 0:02:54.9]} 7.
Be2 {[%clk 0:02:43]} 7... Bg7 {[%clk 0:02:55]} 8. O-O {[%clk 0:02:43.5]} 8...
O-O {[%clk 0:02:55.4]} 9. b3 {[%clk 0:02:39.4]} 9... Bd5 {[%clk 0:02:55.6]} 10.
Bb2 {[%clk 0:02:37.6]} 10... Nbd7 {[%clk 0:02:52.3]} 11. Rc1 {[%clk 0:02:34.3]}
11... Ne4 {[%clk 0:02:51.8]} 12. Ne1 {[%clk 0:02:30.6]} 12... a5 {[%clk
0:02:50.8]} 13. f3 {[%clk 0:02:28.5]} 13... Nd6 {[%clk 0:02:50.3]} 14. e4 {[%clk
0:02:27.3]} 14... Bxc4 {[%clk 0:02:49.1]} 15. bxc4 {[%clk 0:02:28.2]} 15... b5
{[%clk 0:02:47.8]} 16. cxb5 {[%clk 0:02:20.2]} 16... cxb5 {[%clk 0:02:47.2]} 17.
e5 {[%clk 0:02:19.9]} 17... Nc4 {[%clk 0:02:44.4]} 18. Bxc4 {[%clk 0:02:19.3]}
18... bxc4 {[%clk 0:02:43.9]} 19. Rxc4 {[%clk 0:02:20.2]} 19... Nb6 {[%clk
0:02:42]} 20. Rc5 {[%clk 0:02:17.6]} 20... Qd7 {[%clk 0:02:39.8]} 21. Nc2 {[%clk
0:02:09.9]} 21... Na4 {[%clk 0:02:38.3]} 22. Ba3 {[%clk 0:02:01.3]} 22... Nxc5
{[%clk 0:02:35.7]} 23. Bxc5 {[%clk 0:02:02.2]} 23... Rfc8 {[%clk 0:02:34.9]} 24.
Qe2 {[%clk 0:02:00.5]} 24... e6 {[%clk 0:02:32.8]} 25. h4 {[%clk 0:01:57.7]}
25... Qd5 {[%clk 0:02:32.7]} 26. Ne3 {[%clk 0:01:56]} 26... Qb7 {[%clk
0:02:29.5]} 27. Nc4 {[%clk 0:01:50.4]} 27... Qb5 {[%clk 0:02:25]} 28. Qc2 {[%clk
0:01:30]} 28... Rxc5 {[%clk 0:02:18.3]} 29. dxc5 {[%clk 0:01:30.9]} 29... Qxc5+
{[%clk 0:02:18.3]} 30. Kh1 {[%clk 0:01:27.8]} 30... Rc8 {[%clk 0:02:18.4]} 31.
Rc1 {[%clk 0:01:23.1]} 31... Bxe5 {[%clk 0:02:18.6]} 32. h5 {[%clk 0:01:15.3]}
32... Bf4 {[%clk 0:02:15.5]} 33. hxg6 {[%clk 0:01:11.6]} 33... Qh5+ {[%clk
0:02:07.3]} 34. Kg1 {[%clk 0:01:11]} 34... Be3+ {[%clk 0:02:06.1]} 35. Nxe3
{[%clk 0:01:05.3]} 35... Rxc2 {[%clk 0:02:05.6]} 36. Rxc2 {[%clk 0:01:06.2]}
36... hxg6 {[%clk 0:02:05.5]} 37. Ng4 {[%clk 0:01:04.7]} 37... Qg5 {[%clk
0:01:59.5]} 38. Re2 {[%clk 0:00:54.6]} 38... Qc5+ {[%clk 0:01:57.5]} 39. Kh2
{[%clk 0:00:50.4]} 39... Kg7 {[%clk 0:01:57.7]} 40. Re4 {[%clk 0:00:49.7]} 40...
Qc2 {[%clk 0:01:54.8]} 41. a4 {[%clk 0:00:45]} 41... f5 {[%clk 0:01:52.9]} 42.
Rxe6 {[%clk 0:00:42.6]} 42... fxg4 {[%clk 0:01:52]} 43. fxg4 {[%clk 0:00:43.5]}
43... Qc7+ {[%clk 0:01:51]} 44. g3 {[%clk 0:00:42.7]} 44... Qc2+ {[%clk
0:01:50.7]} 45. Kh3 {[%clk 0:00:41.8]} 45... Qxa4 {[%clk 0:01:50.7]} 46. g5
{[%clk 0:00:40.5]} 46... Qb4 {[%clk 0:01:47.7]} 47. g4 {[%clk 0:00:37.4]} 47...
Qb3+ {[%clk 0:01:45.9]} 48. Kh4 {[%clk 0:00:37.8]} 48... Qxe6 {[%clk 0:01:46]}
49. Kg3 {[%clk 0:00:36.6]} 49... a4 {[%clk 0:01:44.7]} 50. Kh4 {[%clk
0:00:37.3]} 50... a3 {[%clk 0:01:45.1]} 51. Kh3 {[%clk 0:00:37.7]} 51... a2
{[%clk 0:01:44.5]} 52. Kh4 {[%clk 0:00:38.6]} 52... a1=Q {[%clk 0:01:41.1]} 53.
Kg3 {[%clk 0:00:39.5]} 53... Qe3+ {[%clk 0:01:38.7]} 54. Kh4 {[%clk 0:00:39.4]}
54... Qh1# {[%clk 0:01:37.1]} 0-1